[Event "Late-Titled-Tuesday-Blitz-November-28-2023"]
[Site "Chess.com"]
[Date "2023.11.28"]
[Round "6"]
[White "Cidonka"]
[Black "Dontmesswithme_2"]
[Result "0-1"]
[WhiteElo "2284"]
[BlackElo "2468"]
[TimeControl "180+1"]
[EndTime "15:05:01 PST"]
[Termination "Dontmesswithme_2 won by checkmate"]

1. e4 {[%clk 0:02:52]} 1... c5 {[%clk 0:02:58.4]} 2. Nf3 {[%clk 0:02:47.7]} 2...
d6 {[%clk 0:02:56.7]} 3. d4 {[%clk 0:02:47.7]} 3... cxd4 {[%clk 0:02:48.2]} 4.
Nxd4 {[%clk 0:02:48.6]} 4... Nf6 {[%clk 0:02:47.6]} 5. Nc3 {[%clk 0:02:29.3]}
5... a6 {[%clk 0:02:42.5]} 6. Bg5 {[%clk 0:02:26.4]} 6... Nbd7 {[%clk
0:02:36.8]} 7. Qe2 {[%clk 0:02:24.7]} 7... h6 {[%clk 0:02:31.4]} 8. Bh4 {[%clk
0:02:24.3]} 8... Qc7 {[%clk 0:02:30]} 9. O-O-O {[%clk 0:02:24.3]} 9... e5 {[%clk
0:02:29.1]} 10. Nf5 {[%clk 0:02:23.5]} 10... b5 {[%clk 0:02:21.5]} 11. Ne3
{[%clk 0:02:22.5]} 11... Bb7 {[%clk 0:02:20.6]} 12. Bxf6 {[%clk 0:02:16.9]}
12... Nxf6 {[%clk 0:02:20.2]} 13. Ned5 {[%clk 0:02:17.2]} 13... Nxd5 {[%clk
0:02:19.1]} 14. Nxd5 {[%clk 0:02:17.5]} 14... Bxd5 {[%clk 0:02:16.3]} 15. Rxd5
{[%clk 0:02:17.3]} 15... Be7 {[%clk 0:02:15.8]} 16. h4 {[%clk 0:02:16.6]} 16...
O-O {[%clk 0:02:13]} 17. g3 {[%clk 0:02:16.9]} 17... Qa5 {[%clk 0:02:04.1]} 18.
Kb1 {[%clk 0:02:15.1]} 18... Rac8 {[%clk 0:01:55.6]} 19. Bh3 {[%clk 0:02:09.6]}
19... Rc7 {[%clk 0:01:53.9]} 20. Bf5 {[%clk 0:02:09.2]} 20... Qb6 {[%clk
0:01:42.4]} 21. Rhd1 {[%clk 0:02:07.1]} 21... b4 {[%clk 0:01:39]} 22. f4 {[%clk
0:01:58.2]} 22... exf4 {[%clk 0:01:34.3]} 23. gxf4 {[%clk 0:01:57.3]} 23... Bxh4
{[%clk 0:01:34.2]} 24. Qg4 {[%clk 0:01:46.3]} 24... Qf2 {[%clk 0:00:58.3]} 25.
R5d2 {[%clk 0:01:21.6]} 25... Qg3 {[%clk 0:00:57.8]} 26. Qh5 {[%clk 0:01:19.5]}
26... Qxf4 {[%clk 0:00:34.5]} 27. Rxd6 {[%clk 0:01:18.6]} 27... Bg5 {[%clk
0:00:14]} 28. R6d3 {[%clk 0:01:09.2]} 28... Qf2 {[%clk 0:00:13.7]} 29. Qh1
{[%clk 0:00:16]} 29... Qxc2+ {[%clk 0:00:13.2]} 30. Ka1 {[%clk 0:00:16.4]} 30...
Bf6 {[%clk 0:00:12.3]} 31. Rb3 {[%clk 0:00:14.3]} 31... a5 {[%clk 0:00:10.5]}
32. e5 {[%clk 0:00:13.1]} 32... Qxf5 {[%clk 0:00:09.2]} 33. exf6 {[%clk
0:00:13.3]} 33... Qxf6 {[%clk 0:00:10.1]} 34. Rg3 {[%clk 0:00:08.8]} 34... Rfc8
{[%clk 0:00:09.3]} 35. Qg1 {[%clk 0:00:08.5]} 35... Rc2 {[%clk 0:00:07.1]} 36.
Rb1 {[%clk 0:00:08.6]} 36... a4 {[%clk 0:00:06.6]} 37. Qa7 {[%clk 0:00:04.2]}
37... a3 {[%clk 0:00:05.5]} 38. Rb3 {[%clk 0:00:02.2]} 38... axb2+ {[%clk
0:00:05.2]} 39. R3xb2 {[%clk 0:00:02.7]} 39... Rxb2 {[%clk 0:00:05]} 40. Rxb2
{[%clk 0:00:03.1]} 40... Rc1# {[%clk 0:00:04.4]} 0-1

[Event "Late-Titled-Tuesday-Blitz-November-28-2023"]
[Site "Chess.com"]
[Date "2023.11.28"]
[Round "6"]
[White "Alexei_Gubajdullin"]
[Black "Ellaijio_B"]
[Result "0-1"]
[WhiteElo "2660"]
[BlackElo "2783"]
[TimeControl "180+1"]
[EndTime "15:05:03 PST"]
[Termination "Ellaijio_B won by checkmate"]

1. d4 {[%clk 0:03:00.9]} 1... d5 {[%clk 0:02:58.4]} 2. Nf3 {[%clk 0:03:00.7]}
2... Nf6 {[%clk 0:02:57.8]} 3. Bf4 {[%clk 0:03:00.6]} 3... a6 {[%clk 0:02:57.2]}
4. e3 {[%clk 0:03:00.8]} 4... g6 {[%clk 0:02:56]} 5. Nbd2 {[%clk 0:03:00.6]}
5... Bg7 {[%clk 0:02:56.1]} 6. Be2 {[%clk 0:03:01]} 6... O-O {[%clk 0:02:55.8]}
7. O-O {[%clk 0:03:01.1]} 7... Bg4 {[%clk 0:02:54.8]} 8. Ne5 {[%clk 0:02:59.3]}
8... Bxe2 {[%clk 0:02:54.5]} 9. Qxe2 {[%clk 0:02:59.3]} 9... c6 {[%clk
0:02:49.9]} 10. c4 {[%clk 0:02:58.8]} 10... Nbd7 {[%clk 0:02:48.1]} 11. cxd5
{[%clk 0:02:58]} 11... Nxd5 {[%clk 0:02:46.4]} 12. Bg3 {[%clk 0:02:57.8]} 12...
Nxe5 {[%clk 0:02:45.7]} 13. dxe5 {[%clk 0:02:57.8]} 13... Nb4 {[%clk 0:02:37]}
14. Nc4 {[%clk 0:02:41.9]} 14... Qd3 {[%clk 0:02:33.6]} 15. Qxd3 {[%clk
0:02:35.4]} 15... Nxd3 {[%clk 0:02:34.5]} 16. Rad1 {[%clk 0:02:27.4]} 16... Rad8
{[%clk 0:02:33.5]} 17. b3 {[%clk 0:02:17.8]} 17... Nb4 {[%clk 0:02:01.1]} 18.
Bh4 {[%clk 0:02:13.6]} 18... Nxa2 {[%clk 0:01:16.5]} 19. Bxe7 {[%clk 0:02:12.1]}
19... Rxd1 {[%clk 0:01:16.3]} 20. Rxd1 {[%clk 0:02:10.9]} 20... Rb8 {[%clk
0:01:17]} 21. Rd7 {[%clk 0:02:07.8]} 21... Bf8 {[%clk 0:01:04.1]} 22. Nd6 {[%clk
0:02:03.6]} 22... b5 {[%clk 0:00:53]} 23. Bf6 {[%clk 0:01:57.2]} 23... Nc1
{[%clk 0:00:38.4]} 24. Nxf7 {[%clk 0:01:49.4]} 24... Nxb3 {[%clk 0:00:38.4]} 25.
Nd8 {[%clk 0:01:11.3]} 25... Nc5 {[%clk 0:00:33.1]} 26. Ra7 {[%clk 0:01:06.8]}
26... b4 {[%clk 0:00:24.2]} 27. Nxc6 {[%clk 0:01:03]} 27... b3 {[%clk
0:00:23.5]} 28. e6 {[%clk 0:00:41.4]} 28... b2 {[%clk 0:00:23.4]} 29. Bxb2
{[%clk 0:00:40.3]} 29... Rxb2 {[%clk 0:00:24.3]} 30. g3 {[%clk 0:00:36.7]} 30...
Nxe6 {[%clk 0:00:24.3]} 31. Rxa6 {[%clk 0:00:36.5]} 31... Nc5 {[%clk 0:00:21.1]}
32. Ra1 {[%clk 0:00:28.7]} 32... Nd3 {[%clk 0:00:20.3]} 33. Rf1 {[%clk
0:00:28.1]} 33... Bg7 {[%clk 0:00:17.8]} 34. Ne7+ {[%clk 0:00:25.7]} 34... Kf7
{[%clk 0:00:17.1]} 35. Nd5 {[%clk 0:00:24.2]} 35... g5 {[%clk 0:00:16]} 36. Kg2
{[%clk 0:00:19.8]} 36... h5 {[%clk 0:00:15]} 37. h3 {[%clk 0:00:16.2]} 37... Rd2
{[%clk 0:00:14.6]} 38. Nb6 {[%clk 0:00:14.6]} 38... Ne5 {[%clk 0:00:14.1]} 39.
Na4 {[%clk 0:00:12.2]} 39... g4 {[%clk 0:00:11.8]} 40. hxg4 {[%clk 0:00:11.9]}
40... Nxg4 {[%clk 0:00:12.4]} 41. Kh3 {[%clk 0:00:09.4]} 41... Kg6 {[%clk
0:00:11.5]} 42. f3 {[%clk 0:00:06.8]} 42... Rh2# {[%clk 0:00:10.7]} 0-1

[Event "Late-Titled-Tuesday-Blitz-November-28-2023"]
[Site "Chess.com"]
[Date "2023.11.28"]
[Round "6"]
[White "rasmussvane"]
[Black "Dinamo81"]
[Result "1-0"]
[WhiteElo "2977"]
[BlackElo "2713"]
[TimeControl "180+1"]
[EndTime "15:05:04 PST"]
[Termination "rasmussvane won by resignation"]

1. Nf3 {[%clk 0:02:54]} 1... c5 {[%clk 0:02:55.7]} 2. g3 {[%clk 0:02:51.6]} 2...
Nc6 {[%clk 0:02:55.5]} 3. Bg2 {[%clk 0:02:50.5]} 3... e5 {[%clk 0:02:55.4]} 4.
c4 {[%clk 0:02:50.1]} 4... g6 {[%clk 0:02:55.1]} 5. O-O {[%clk 0:02:49.1]} 5...
Bg7 {[%clk 0:02:55.6]} 6. Nc3 {[%clk 0:02:49.1]} 6... d6 {[%clk 0:02:55]} 7. d3
{[%clk 0:02:48.4]} 7... Nge7 {[%clk 0:02:52]} 8. Bg5 {[%clk 0:02:48.2]} 8... f6
{[%clk 0:02:50.8]} 9. Bd2 {[%clk 0:02:46.8]} 9... Be6 {[%clk 0:02:42.5]} 10. a3
{[%clk 0:02:44.6]} 10... a5 {[%clk 0:02:26]} 11. Rb1 {[%clk 0:02:40.5]} 11...
O-O {[%clk 0:02:25.7]} 12. Ne1 {[%clk 0:02:38.9]} 12... Rb8 {[%clk 0:02:08.3]}
13. Nc2 {[%clk 0:02:37.9]} 13... d5 {[%clk 0:02:05.9]} 14. cxd5 {[%clk
0:02:36.2]} 14... Nxd5 {[%clk 0:02:06.8]} 15. Ne3 {[%clk 0:02:31.3]} 15... Nde7
{[%clk 0:02:05.9]} 16. Nb5 {[%clk 0:02:05.9]} 16... Qd7 {[%clk 0:01:54.5]} 17.
Nc4 {[%clk 0:02:02.4]} 17... b6 {[%clk 0:01:54.6]} 18. b4 {[%clk 0:01:42.7]}
18... axb4 {[%clk 0:01:37.9]} 19. axb4 {[%clk 0:01:42.8]} 19... Nd4 {[%clk
0:01:18.8]} 20. Nxd4 {[%clk 0:01:39.4]} 20... cxd4 {[%clk 0:01:19.7]} 21. b5
{[%clk 0:01:37.4]} 21... Nd5 {[%clk 0:01:20.2]} 22. Qb3 {[%clk 0:01:33.1]} 22...
Rfc8 {[%clk 0:01:13.2]} 23. Rfc1 {[%clk 0:01:32]} 23... Bf8 {[%clk 0:01:05.7]}
24. Ra1 {[%clk 0:01:27]} 24... Bc5 {[%clk 0:00:35.6]} 25. Ra6 {[%clk 0:01:21.3]}
25... Rc7 {[%clk 0:00:32.9]} 26. Rca1 {[%clk 0:01:18.4]} 26... Kg7 {[%clk
0:00:33.4]} 27. Qb2 {[%clk 0:01:08.9]} 27... Bf7 {[%clk 0:00:29.1]} 28. Ra8
{[%clk 0:01:01.7]} 28... Rxa8 {[%clk 0:00:26.7]} 29. Rxa8 {[%clk 0:01:02.6]}
29... Ra7 {[%clk 0:00:23.1]} 30. Rxa7 {[%clk 0:00:56.1]} 30... Qxa7 {[%clk
0:00:24]} 31. h4 {[%clk 0:00:56]} 31... h5 {[%clk 0:00:19.8]} 32. Kh2 {[%clk
0:00:42.5]} 32... Qa4 {[%clk 0:00:20.1]} 33. e4 {[%clk 0:00:31.5]} 33... Nc3
{[%clk 0:00:16.2]} 34. Bxc3 {[%clk 0:00:19.4]} 34... dxc3 {[%clk 0:00:17.1]} 35.
Qxc3 {[%clk 0:00:20]} 35... Qxb5 {[%clk 0:00:17.3]} 36. Nxe5 {[%clk 0:00:08.7]}
36... fxe5 {[%clk 0:00:18.2]} 37. Qxe5+ {[%clk 0:00:09.6]} 37... Kg8 {[%clk
0:00:07.9]} 38. d4 {[%clk 0:00:10.1]} 38... Qe8 {[%clk 0:00:04.4]} 39. Qxe8+
{[%clk 0:00:09.5]} 39... Bxe8 {[%clk 0:00:05.3]} 40. dxc5 {[%clk 0:00:10.4]}
40... bxc5 {[%clk 0:00:05.7]} 41. Kg1 {[%clk 0:00:09.8]} 41... Kg7 {[%clk
0:00:06.2]} 42. Kf1 {[%clk 0:00:10.3]} 42... Kf6 {[%clk 0:00:06.8]} 43. Ke2
{[%clk 0:00:10.3]} 43... Ke5 {[%clk 0:00:07.2]} 44. Ke3 {[%clk 0:00:10.3]} 44...
Bb5 {[%clk 0:00:05.5]} 45. f4+ {[%clk 0:00:10.8]} 45... Kd6 {[%clk 0:00:05.9]}
46. Bf3 {[%clk 0:00:11.4]} 46... Ke6 {[%clk 0:00:06.5]} 47. Be2 {[%clk
0:00:11.8]} 1-0

[Event "Late-Titled-Tuesday-Blitz-November-28-2023"]
[Site "Chess.com"]
[Date "2023.11.28"]
[Round "6"]
[White "SpeedofLight0"]
[Black "ChessSwole"]
[Result "0-1"]
[WhiteElo "2868"]
[BlackElo "2693"]
[TimeControl "180+1"]
[EndTime "15:05:08 PST"]
[Termination "ChessSwole won by resignation"]

1. d4 {[%clk 0:02:46.1]} 1... d5 {[%clk 0:02:57.4]} 2. c4 {[%clk 0:02:46.2]}
2... c6 {[%clk 0:02:57.9]} 3. Nf3 {[%clk 0:02:44.8]} 3... Nf6 {[%clk 0:02:58.1]}
4. Qc2 {[%clk 0:02:45.1]} 4... g6 {[%clk 0:02:57.4]} 5. g3 {[%clk 0:02:43.7]}
5... Bg7 {[%clk 0:02:57.7]} 6. Bg2 {[%clk 0:02:43.7]} 6... O-O {[%clk
0:02:56.5]} 7. O-O {[%clk 0:02:43.7]} 7... dxc4 {[%clk 0:02:44.6]} 8. a4 {[%clk
0:02:43.5]} 8... a5 {[%clk 0:02:41]} 9. Na3 {[%clk 0:02:41.5]} 9... Na6 {[%clk
0:02:40.6]} 10. Nxc4 {[%clk 0:02:40.8]} 10... Nb4 {[%clk 0:02:40.6]} 11. Qd1
{[%clk 0:02:38.4]} 11... Bf5 {[%clk 0:02:41]} 12. Bf4 {[%clk 0:02:28.7]} 12...
Be4 {[%clk 0:02:35.3]} 13. Rc1 {[%clk 0:02:25.7]} 13... Na2 {[%clk 0:02:29.2]}
14. Ra1 {[%clk 0:02:24]} 14... Nb4 {[%clk 0:02:29.8]} 15. Be5 {[%clk 0:02:16]}
15... Ra6 {[%clk 0:02:22.4]} 16. Rc1 {[%clk 0:01:47.7]} 16... Na2 {[%clk
0:02:21.3]} 17. Ra1 {[%clk 0:01:47.6]} 17... Nb4 {[%clk 0:02:21.9]} 18. Ne1
{[%clk 0:01:44.4]} 18... Bxg2 {[%clk 0:02:21.5]} 19. Kxg2 {[%clk 0:01:45.3]}
19... Qd5+ {[%clk 0:02:12.3]} 20. e4 {[%clk 0:01:32]} 20... Qxc4 {[%clk
0:02:12.4]} 21. f3 {[%clk 0:01:21.1]} 21... Rd8 {[%clk 0:02:03.6]} 22. Rf2
{[%clk 0:01:17.3]} 22... Ne8 {[%clk 0:01:58.7]} 23. Rd2 {[%clk 0:01:13.7]} 23...
Raa8 {[%clk 0:01:45.7]} 24. g4 {[%clk 0:00:54.2]} 24... Bf8 {[%clk 0:01:46.6]}
25. Bg3 {[%clk 0:00:45.1]} 25... Bg7 {[%clk 0:01:44.5]} 26. Rc1 {[%clk
0:00:43.7]} 26... Qe6 {[%clk 0:01:38.7]} 27. h4 {[%clk 0:00:41.5]} 27... Nd6
{[%clk 0:01:27]} 28. b3 {[%clk 0:00:37.1]} 28... b5 {[%clk 0:01:15.8]} 29. e5
{[%clk 0:00:20]} 29... Ne8 {[%clk 0:01:02.6]} 30. f4 {[%clk 0:00:20.1]} 30...
Qd5+ {[%clk 0:00:59.8]} 31. Nf3 {[%clk 0:00:19.8]} 31... Nc7 {[%clk 0:00:46.1]}
32. f5 {[%clk 0:00:19.6]} 32... Qe4 {[%clk 0:00:31.7]} 33. Kh3 {[%clk
0:00:06.6]} 33... Ncd5 {[%clk 0:00:31.9]} 34. Ng5 {[%clk 0:00:06]} 34... Qe3
{[%clk 0:00:26]} 35. Kh2 {[%clk 0:00:06.2]} 35... Nf4 {[%clk 0:00:24.7]} 36. Rf2
{[%clk 0:00:03.9]} 36... Nfd3 {[%clk 0:00:24.3]} 37. Rf3 {[%clk 0:00:03.4]}
37... Qxc1 {[%clk 0:00:23.3]} 38. Rxd3 {[%clk 0:00:02.8]} 38... Nxd3 {[%clk
0:00:23]} 39. Qxd3 {[%clk 0:00:03.3]} 39... Qb2+ {[%clk 0:00:22.3]} 40. Kh3
{[%clk 0:00:03.4]} 40... Qxd4 {[%clk 0:00:22.7]} 41. Qc2 {[%clk 0:00:03.5]}
41... Bxe5 {[%clk 0:00:22.3]} 42. fxg6 {[%clk 0:00:03.4]} 42... hxg6 {[%clk
0:00:22.2]} 43. Qxc6 {[%clk 0:00:03.4]} 43... Qe3 {[%clk 0:00:20.5]} 44. Nf3
{[%clk 0:00:03]} 44... Bxg3 {[%clk 0:00:20.4]} 45. Kxg3 {[%clk 0:00:03.7]} 45...
Qe6 {[%clk 0:00:19.9]} 46. Qc5 {[%clk 0:00:03.7]} 46... Qd6+ {[%clk 0:00:19.9]}
47. Qe5 {[%clk 0:00:03.5]} 47... Qxe5+ {[%clk 0:00:20.1]} 48. Nxe5 {[%clk
0:00:04.4]} 48... bxa4 {[%clk 0:00:20.8]} 49. bxa4 {[%clk 0:00:05]} 49... Rd4
{[%clk 0:00:21]} 50. h5 {[%clk 0:00:05.1]} 50... gxh5 {[%clk 0:00:21.1]} 51.
gxh5 {[%clk 0:00:06]} 51... Rxa4 {[%clk 0:00:21.3]} 52. h6 {[%clk 0:00:06.6]}
52... f6 {[%clk 0:00:21.1]} 53. Ng6 {[%clk 0:00:06.6]} 53... Kh7 {[%clk
0:00:21.5]} 54. Nxe7 {[%clk 0:00:06.9]} 54... Kxh6 {[%clk 0:00:22]} 55. Nf5+
{[%clk 0:00:07.4]} 55... Kg5 {[%clk 0:00:22.6]} 56. Ne3 {[%clk 0:00:08.3]} 56...
Ra3 {[%clk 0:00:23.1]} 57. Kf3 {[%clk 0:00:09.2]} 57... Rxe3+ {[%clk 0:00:23.6]}
58. Kxe3 {[%clk 0:00:09.7]} 58... Rd8 {[%clk 0:00:23.8]} 0-1

[Event "Late-Titled-Tuesday-Blitz-November-28-2023"]
[Site "Chess.com"]
[Date "2023.11.28"]
[Round "6"]
[White "ural58"]
[Black "GMJustin"]
[Result "1/2-1/2"]
[WhiteElo "2465"]
[BlackElo "2322"]
[TimeControl "180+1"]
[EndTime "15:05:08 PST"]
[Termination "Game drawn - insufficient material"]

1. e4 {[%clk 0:02:38.4]} 1... e5 {[%clk 0:02:58.3]} 2. Nf3 {[%clk 0:02:37.8]}
2... Nc6 {[%clk 0:02:57.5]} 3. Bc4 {[%clk 0:02:37.8]} 3... Bc5 {[%clk
0:02:56.4]} 4. b4 {[%clk 0:02:37.2]} 4... Bxb4 {[%clk 0:02:50.2]} 5. c3 {[%clk
0:02:37.4]} 5... Bd6 {[%clk 0:02:34.2]} 6. d4 {[%clk 0:02:27.9]} 6... Nf6 {[%clk
0:02:34.1]} 7. O-O {[%clk 0:02:22.2]} 7... O-O {[%clk 0:02:32.4]} 8. Bg5 {[%clk
0:02:19.3]} 8... h6 {[%clk 0:02:26.5]} 9. Bh4 {[%clk 0:02:18.6]} 9... Be7 {[%clk
0:02:18.7]} 10. Nbd2 {[%clk 0:02:14.5]} 10... Nxe4 {[%clk 0:01:46]} 11. Bxe7
{[%clk 0:02:08.1]} 11... Nxe7 {[%clk 0:01:44.7]} 12. Bxf7+ {[%clk 0:01:48.1]}
12... Rxf7 {[%clk 0:01:44.3]} 13. Nxe4 {[%clk 0:01:45.2]} 13... d5 {[%clk
0:01:35.1]} 14. dxe5 {[%clk 0:01:39.3]} 14... Bg4 {[%clk 0:01:27.4]} 15. Ned2
{[%clk 0:01:36.6]} 15... Nc6 {[%clk 0:01:05.4]} 16. Re1 {[%clk 0:01:35.7]} 16...
d4 {[%clk 0:00:58.5]} 17. Qb3 {[%clk 0:01:27.9]} 17... dxc3 {[%clk 0:00:52.8]}
18. Qxc3 {[%clk 0:01:26.5]} 18... Qd5 {[%clk 0:00:45.6]} 19. Qb3 {[%clk
0:01:10.5]} 19... Qxb3 {[%clk 0:00:36]} 20. axb3 {[%clk 0:01:09.5]} 20... Rd8
{[%clk 0:00:31.6]} 21. h3 {[%clk 0:01:04.4]} 21... Bh5 {[%clk 0:00:23.3]} 22.
Re3 {[%clk 0:00:59.3]} 22... a6 {[%clk 0:00:16.8]} 23. g4 {[%clk 0:00:59.1]}
23... Bg6 {[%clk 0:00:16.2]} 24. Nc4 {[%clk 0:00:59.4]} 24... Rd3 {[%clk
0:00:09.6]} 25. Rxd3 {[%clk 0:00:43.4]} 25... Bxd3 {[%clk 0:00:09]} 26. Nfd2
{[%clk 0:00:43.3]} 26... Nd4 {[%clk 0:00:07.5]} 27. Kg2 {[%clk 0:00:35.6]} 27...
Nxb3 {[%clk 0:00:06.3]} 28. Nxb3 {[%clk 0:00:33.5]} 28... Bxc4 {[%clk
0:00:06.4]} 29. Nc5 {[%clk 0:00:34.1]} 29... Bd5+ {[%clk 0:00:03.9]} 30. Kg1
{[%clk 0:00:32.2]} 30... b6 {[%clk 0:00:03]} 31. Nxa6 {[%clk 0:00:31.5]} 31...
Bb7 {[%clk 0:00:02.5]} 32. Nb4 {[%clk 0:00:27.5]} 32... c5 {[%clk 0:00:02.7]}
33. Nd3 {[%clk 0:00:26.4]} 33... Be4 {[%clk 0:00:02.8]} 34. Nc1 {[%clk 0:00:20]}
34... c4 {[%clk 0:00:03]} 35. Ne2 {[%clk 0:00:19.7]} 35... b5 {[%clk 0:00:02.8]}
36. Nc3 {[%clk 0:00:18.7]} 36... Bc6 {[%clk 0:00:02.9]} 37. Rb1 {[%clk
0:00:18.9]} 37... Rb7 {[%clk 0:00:02.4]} 38. Rb4 {[%clk 0:00:17.9]} 38... Bd7
{[%clk 0:00:02.2]} 39. f4 {[%clk 0:00:18.1]} 39... g6 {[%clk 0:00:02.4]} 40. Kf2
{[%clk 0:00:18.5]} 40... Kf7 {[%clk 0:00:02.7]} 41. Ke3 {[%clk 0:00:19.2]} 41...
h5 {[%clk 0:00:03]} 42. Kd4 {[%clk 0:00:19.9]} 42... hxg4 {[%clk 0:00:03]} 43.
hxg4 {[%clk 0:00:20.6]} 43... Bxg4 {[%clk 0:00:03.2]} 44. Rxb5 {[%clk
0:00:21.2]} 44... Rxb5 {[%clk 0:00:02.5]} 45. Nxb5 {[%clk 0:00:21]} 45... Ke6
{[%clk 0:00:02.4]} 46. Nd6 {[%clk 0:00:18.4]} 46... Be2 {[%clk 0:00:02.2]} 47.
Nxc4 {[%clk 0:00:18]} 47... Bxc4 {[%clk 0:00:02.4]} 48. Kxc4 {[%clk 0:00:18.3]}
48... g5 {[%clk 0:00:03]} 49. fxg5 {[%clk 0:00:18.6]} 49... Kxe5 {[%clk
0:00:03]} 50. g6 {[%clk 0:00:19]} 50... Kf6 {[%clk 0:00:03.3]} 51. g7 {[%clk
0:00:19.9]} 51... Kxg7 {[%clk 0:00:03.5]} 1/2-1/2

[Event "Late-Titled-Tuesday-Blitz-November-28-2023"]
[Site "Chess.com"]
[Date "2023.11.28"]
[Round "6"]
[White "OneTrickPony_82"]
[Black "reevecanada"]
[Result "1/2-1/2"]
[WhiteElo "2479"]
[BlackElo "2635"]
[TimeControl "180+1"]
[EndTime "15:05:12 PST"]
[Termination "Game drawn - insufficient material"]

1. d4 {[%clk 0:03:00.9]} 1... e5 {[%clk 0:02:58.5]} 2. dxe5 {[%clk 0:03:00.4]}
2... Nc6 {[%clk 0:02:57.9]} 3. Nf3 {[%clk 0:03:00.6]} 3... Qe7 {[%clk
0:02:57.7]} 4. Bg5 {[%clk 0:02:58.3]} 4... Qb4+ {[%clk 0:02:55.2]} 5. Nc3 {[%clk
0:02:55.9]} 5... Qxb2 {[%clk 0:02:52.2]} 6. Bd2 {[%clk 0:02:52.8]} 6... Bb4
{[%clk 0:02:47.3]} 7. Rb1 {[%clk 0:02:52]} 7... Qa3 {[%clk 0:02:45.2]} 8. Nd5
{[%clk 0:02:38]} 8... Ba5 {[%clk 0:02:14.2]} 9. Bxa5 {[%clk 0:01:50.4]} 9...
Qxa5+ {[%clk 0:02:13.4]} 10. Qd2 {[%clk 0:01:51]} 10... Qxd2+ {[%clk 0:02:12.5]}
11. Kxd2 {[%clk 0:01:46.3]} 11... Kd8 {[%clk 0:02:12.5]} 12. e4 {[%clk
0:01:38.7]} 12... Nge7 {[%clk 0:02:06.6]} 13. Ng5 {[%clk 0:01:34.8]} 13... Nxe5
{[%clk 0:02:05.8]} 14. f4 {[%clk 0:01:28]} 14... h6 {[%clk 0:02:05.1]} 15. fxe5
{[%clk 0:01:18.7]} 15... hxg5 {[%clk 0:02:03.5]} 16. Nxe7 {[%clk 0:01:09.3]}
16... Kxe7 {[%clk 0:02:02.7]} 17. Bc4 {[%clk 0:01:09.9]} 17... f6 {[%clk
0:02:01.4]} 18. exf6+ {[%clk 0:00:56]} 18... gxf6 {[%clk 0:02:00.1]} 19. g3
{[%clk 0:00:49.6]} 19... d6 {[%clk 0:01:59.4]} 20. h4 {[%clk 0:00:48.9]} 20...
g4 {[%clk 0:01:53.4]} 21. Rhf1 {[%clk 0:00:46.8]} 21... c6 {[%clk 0:01:50.8]}
22. Rf4 {[%clk 0:00:45.1]} 22... b5 {[%clk 0:01:45]} 23. Be2 {[%clk 0:00:43.7]}
23... Rg8 {[%clk 0:01:44.5]} 24. Rbf1 {[%clk 0:00:29.3]} 24... Rg6 {[%clk
0:01:44.1]} 25. h5 {[%clk 0:00:28.8]} 25... Rh6 {[%clk 0:01:42.6]} 26. Bxg4
{[%clk 0:00:28.5]} 26... Bxg4 {[%clk 0:01:40.8]} 27. Rxg4 {[%clk 0:00:29.4]}
27... Rxh5 {[%clk 0:01:40.4]} 28. Rg7+ {[%clk 0:00:26.8]} 28... Ke6 {[%clk
0:01:39.8]} 29. Kd3 {[%clk 0:00:22]} 29... Rg5 {[%clk 0:01:33.9]} 30. Rxg5
{[%clk 0:00:18.2]} 30... fxg5 {[%clk 0:01:34.8]} 31. Rf5 {[%clk 0:00:17.6]}
31... Rg8 {[%clk 0:01:33.4]} 32. g4 {[%clk 0:00:18.1]} 32... Rg7 {[%clk
0:01:32.8]} 33. e5 {[%clk 0:00:17.8]} 33... dxe5 {[%clk 0:01:31.1]} 34. Ke4
{[%clk 0:00:18.1]} 34... Kd6 {[%clk 0:01:25.7]} 35. Rxe5 {[%clk 0:00:18]} 35...
a5 {[%clk 0:01:26.1]} 36. Kd4 {[%clk 0:00:14.4]} 36... a4 {[%clk 0:01:23.5]} 37.
a3 {[%clk 0:00:14]} 37... Rg6 {[%clk 0:01:21.4]} 38. Rf5 {[%clk 0:00:14.1]}
38... Rg7 {[%clk 0:00:59]} 39. c4 {[%clk 0:00:14.1]} 39... bxc4 {[%clk
0:00:57.6]} 40. Kxc4 {[%clk 0:00:14.3]} 40... Kc7 {[%clk 0:00:52.6]} 41. Kc5
{[%clk 0:00:13.4]} 41... Rg6 {[%clk 0:00:46.3]} 42. Rf7+ {[%clk 0:00:13.2]}
42... Kd8 {[%clk 0:00:46.7]} 43. Ra7 {[%clk 0:00:09.5]} 43... Rf6 {[%clk
0:00:45]} 44. Rxa4 {[%clk 0:00:07.6]} 44... Kd7 {[%clk 0:00:39.9]} 45. Ra7+
{[%clk 0:00:05]} 45... Ke6 {[%clk 0:00:39.7]} 46. Kxc6 {[%clk 0:00:04.6]} 46...
Ke5+ {[%clk 0:00:39.2]} 47. Kc5 {[%clk 0:00:04.4]} 47... Kf4 {[%clk 0:00:39.2]}
48. a4 {[%clk 0:00:03.9]} 48... Kxg4 {[%clk 0:00:39.1]} 49. a5 {[%clk
0:00:04.2]} 49... Rg6 {[%clk 0:00:33.9]} 50. a6 {[%clk 0:00:03.5]} 50... Rg8
{[%clk 0:00:30.5]} 51. Kb5 {[%clk 0:00:03.6]} 51... Kg3 {[%clk 0:00:30.6]} 52.
Rb7 {[%clk 0:00:03.4]} 52... g4 {[%clk 0:00:30.2]} 53. a7 {[%clk 0:00:03.9]}
53... Ra8 {[%clk 0:00:27.3]} 54. Kb6 {[%clk 0:00:04.3]} 54... Kh2 {[%clk
0:00:23.7]} 55. Rb8 {[%clk 0:00:04.5]} 55... Rxa7 {[%clk 0:00:23.3]} 56. Kxa7
{[%clk 0:00:05.4]} 56... g3 {[%clk 0:00:23.7]} 57. Rg8 {[%clk 0:00:05.5]} 57...
g2 {[%clk 0:00:23.2]} 58. Rxg2+ {[%clk 0:00:06.1]} 58... Kxg2 {[%clk 0:00:23.3]}
1/2-1/2